[Event "Early-Titled-Tuesday-Blitz-September-05-2023"]
[Site "Chess.com"]
[Date "2023.09.05"]
[Round "3"]
[White "malakismayil"]
[Black "hansen"]
[Result "0-1"]
[WhiteElo "2502"]
[BlackElo "2864"]
[TimeControl "180+1"]
[EndTime "8:27:58 PDT"]
[Termination "hansen won on time"]

1. e4 {[%clk 0:03:00.9]} 1... e5 {[%clk 0:02:45]} 2. Nf3 {[%clk 0:03:01]} 2...
Nc6 {[%clk 0:02:42]} 3. Bc4 {[%clk 0:03:01.1]} 3... Bc5 {[%clk 0:02:41.7]} 4. d3
{[%clk 0:03:01.4]} 4... d6 {[%clk 0:02:39.5]} 5. Nc3 {[%clk 0:03:01.1]} 5... a6
{[%clk 0:02:38.8]} 6. h3 {[%clk 0:03:00.1]} 6... h6 {[%clk 0:02:38.9]} 7. Be3
{[%clk 0:03:00]} 7... Bb4 {[%clk 0:02:38.5]} 8. a3 {[%clk 0:02:53.7]} 8... Bxc3+
{[%clk 0:02:38.6]} 9. bxc3 {[%clk 0:02:54.6]} 9... Nf6 {[%clk 0:02:39.2]} 10.
Bb3 {[%clk 0:02:52.2]} 10... O-O {[%clk 0:02:38.7]} 11. O-O {[%clk 0:02:51.8]}
11... Ne7 {[%clk 0:02:38.2]} 12. Qd2 {[%clk 0:02:38.5]} 12... Kh7 {[%clk
0:02:29.8]} 13. Rae1 {[%clk 0:02:34.8]} 13... Ng6 {[%clk 0:02:29.9]} 14. Nh2
{[%clk 0:02:29.3]} 14... Nh5 {[%clk 0:02:25.5]} 15. d4 {[%clk 0:02:25.7]} 15...
Qe7 {[%clk 0:02:22.3]} 16. Kh1 {[%clk 0:02:15.1]} 16... Nhf4 {[%clk 0:02:19.9]}
17. Bxf4 {[%clk 0:02:02.2]} 17... Nxf4 {[%clk 0:02:19.5]} 18. Qe3 {[%clk
0:01:27.7]} 18... Bd7 {[%clk 0:02:18.5]} 19. Nf3 {[%clk 0:01:19.8]} 19... Rae8
{[%clk 0:02:16.1]} 20. dxe5 {[%clk 0:00:56]} 20... dxe5 {[%clk 0:02:16.2]} 21.
Rd1 {[%clk 0:00:55]} 21... Bb5 {[%clk 0:02:16]} 22. Rfe1 {[%clk 0:00:50.2]}
22... Qf6 {[%clk 0:02:02.4]} 23. Kh2 {[%clk 0:00:48.7]} 23... Qe7 {[%clk
0:01:26.8]} 24. g3 {[%clk 0:00:48.5]} 24... Nh5 {[%clk 0:01:26.8]} 25. Nh4
{[%clk 0:00:43.4]} 25... g6 {[%clk 0:01:24.3]} 26. Bd5 {[%clk 0:00:29.7]} 26...
Nf6 {[%clk 0:01:13.5]} 27. Ng2 {[%clk 0:00:08.9]} 27... Nxd5 {[%clk 0:01:06.4]}
28. exd5 {[%clk 0:00:09.8]} 28... f5 {[%clk 0:00:50.5]} 29. f4 {[%clk
0:00:03.7]} 29... e4 {[%clk 0:00:48.2]} 30. Qd4 {[%clk 0:00:04.1]} 30... Qxa3
{[%clk 0:00:38.5]} 31. c4 {[%clk 0:00:03.9]} 31... Bd7 {[%clk 0:00:38.8]} 32.
Ne3 {[%clk 0:00:04.2]} 32... Qe7 {[%clk 0:00:38.1]} 33. Rb1 {[%clk 0:00:04.2]}
33... Rb8 {[%clk 0:00:34.1]} 34. c5 {[%clk 0:00:04.1]} 34... g5 {[%clk
0:00:22.8]} 35. Rf1 {[%clk 0:00:03.4]} 35... Kg6 {[%clk 0:00:21.4]} 36. Nc4
{[%clk 0:00:02.2]} 36... Kh7 {[%clk 0:00:14.6]} 37. Ne5 {[%clk 0:00:03.1]} 37...
Be8 {[%clk 0:00:13.2]} 38. d6 {[%clk 0:00:03.1]} 38... Qg7 {[%clk 0:00:07]} 39.
d7 {[%clk 0:00:02.3]} 39... Bh5 {[%clk 0:00:05.7]} 40. Rbe1 {[%clk 0:00:02.3]}
40... Rbd8 {[%clk 0:00:04.4]} 41. g4 {[%clk 0:00:02.5]} 41... Bg6 {[%clk
0:00:02.1]} 42. fxg5 {[%clk 0:00:02.2]} 42... hxg5 {[%clk 0:00:03]} 43. c3
{[%clk 0:00:02.3]} 43... c6 {[%clk 0:00:02.7]} 0-1

[Event "Early-Titled-Tuesday-Blitz-September-05-2023"]
[Site "Chess.com"]
[Date "2023.09.05"]
[Round "3"]
[White "KejJaj"]
[Black "OlaaLa"]
[Result "0-1"]
[WhiteElo "2202"]
[BlackElo "2436"]
[TimeControl "180+1"]
[EndTime "8:27:58 PDT"]
[Termination "OlaaLa won on time"]

1. d4 {[%clk 0:03:00.9]} 1... f5 {[%clk 0:02:58.4]} 2. e4 {[%clk 0:02:59.6]}
2... fxe4 {[%clk 0:02:57.4]} 3. Nc3 {[%clk 0:03:00.2]} 3... Nf6 {[%clk
0:02:55.7]} 4. Bg5 {[%clk 0:03:00.9]} 4... Nc6 {[%clk 0:02:53.5]} 5. d5 {[%clk
0:02:59]} 5... Ne5 {[%clk 0:02:53.7]} 6. Qe2 {[%clk 0:02:59]} 6... c6 {[%clk
0:02:29.8]} 7. f4 {[%clk 0:02:34.9]} 7... Nf7 {[%clk 0:02:18.1]} 8. Bxf6 {[%clk
0:02:34.1]} 8... gxf6 {[%clk 0:02:03.7]} 9. Qxe4 {[%clk 0:02:11.5]} 9... d6
{[%clk 0:01:50.5]} 10. O-O-O {[%clk 0:01:53.8]} 10... c5 {[%clk 0:01:45.1]} 11.
Be2 {[%clk 0:01:36.4]} 11... f5 {[%clk 0:01:41.3]} 12. Qe3 {[%clk 0:01:30.7]}
12... Bg7 {[%clk 0:01:41.2]} 13. Nf3 {[%clk 0:01:22.4]} 13... Bd7 {[%clk
0:01:29.5]} 14. Ng5 {[%clk 0:01:10.3]} 14... Nxg5 {[%clk 0:01:26.8]} 15. fxg5
{[%clk 0:01:09.7]} 15... O-O {[%clk 0:01:22.8]} 16. h4 {[%clk 0:00:52.7]} 16...
f4 {[%clk 0:01:17.7]} 17. Qf3 {[%clk 0:00:48.5]} 17... Qa5 {[%clk 0:01:15.5]}
18. Nb1 {[%clk 0:00:38.6]} 18... Qxa2 {[%clk 0:01:10.6]} 19. c3 {[%clk 0:00:39]}
19... Bf5 {[%clk 0:01:07.5]} 20. Bd3 {[%clk 0:00:37.8]} 20... a5 {[%clk
0:00:47.3]} 21. h5 {[%clk 0:00:36.9]} 21... a4 {[%clk 0:00:45.8]} 22. h6 {[%clk
0:00:28.2]} 22... Be5 {[%clk 0:00:45.6]} 23. Bxf5 {[%clk 0:00:26.4]} 23... Rxf5
{[%clk 0:00:45.4]} 24. g6 {[%clk 0:00:26.8]} 24... a3 {[%clk 0:00:42.2]} 25. Rd2
{[%clk 0:00:23.2]} 25... Qc4 {[%clk 0:00:25.9]} 26. gxh7+ {[%clk 0:00:21.9]}
26... Kxh7 {[%clk 0:00:25.2]} 27. Qg4 {[%clk 0:00:21.4]} 27... axb2+ {[%clk
0:00:19.5]} 28. Rxb2 {[%clk 0:00:20.5]} 28... Raf8 {[%clk 0:00:18.6]} 29. Rc2
{[%clk 0:00:18.8]} 29... Qxd5 {[%clk 0:00:16.9]} 30. Rh5 {[%clk 0:00:17.9]}
30... Qf7 {[%clk 0:00:16.8]} 31. Rxf5 {[%clk 0:00:17.8]} 31... Qxf5 {[%clk
0:00:17.5]} 32. Qh4 {[%clk 0:00:18.1]} 32... Qf6 {[%clk 0:00:16.7]} 33. Qh3
{[%clk 0:00:16.5]} 33... Qxh6 {[%clk 0:00:16.9]} 34. Qxh6+ {[%clk 0:00:12.1]}
34... Kxh6 {[%clk 0:00:17.8]} 35. Rf2 {[%clk 0:00:10.9]} 35... Kg5 {[%clk
0:00:17.4]} 36. Kc2 {[%clk 0:00:11.3]} 36... Kg4 {[%clk 0:00:17.7]} 37. Kd3
{[%clk 0:00:12]} 37... d5 {[%clk 0:00:17.4]} 38. Nd2 {[%clk 0:00:11.5]} 38...
c4+ {[%clk 0:00:17.8]} 39. Kc2 {[%clk 0:00:11.4]} 39... e6 {[%clk 0:00:17.8]}
40. Nf3 {[%clk 0:00:11.7]} 40... Bg7 {[%clk 0:00:18]} 41. Re2 {[%clk 0:00:10.7]}
41... Kg3 {[%clk 0:00:14.6]} 42. Rxe6 {[%clk 0:00:08.6]} 42... Kxg2 {[%clk
0:00:15.2]} 43. Nh4+ {[%clk 0:00:07]} 43... Kf2 {[%clk 0:00:13.2]} 44. Kd2
{[%clk 0:00:05]} 44... Ra8 {[%clk 0:00:12.5]} 45. Rg6 {[%clk 0:00:02.5]} 45...
Ra2+ {[%clk 0:00:12.3]} 46. Kd1 {[%clk 0:00:01.9]} 46... Ra1+ {[%clk 0:00:12.6]}
47. Kc2 {[%clk 0:00:01.9]} 47... Rg1 {[%clk 0:00:10.2]} 0-1

[Event "Early-Titled-Tuesday-Blitz-September-05-2023"]
[Site "Chess.com"]
[Date "2023.09.05"]
[Round "3"]
[White "fastestmindalive"]
[Black "Mesa_1"]
[Result "0-1"]
[WhiteElo "2708"]
[BlackElo "2576"]
[TimeControl "180+1"]
[EndTime "8:27:59 PDT"]
[Termination "Mesa_1 won on time"]

1. e4 {[%clk 0:03:00.9]} 1... e5 {[%clk 0:02:58.6]} 2. Nf3 {[%clk 0:03:00.2]}
2... Nc6 {[%clk 0:02:57.6]} 3. d4 {[%clk 0:02:58.4]} 3... exd4 {[%clk
0:02:56.7]} 4. Bc4 {[%clk 0:02:58.6]} 4... Nf6 {[%clk 0:02:52]} 5. e5 {[%clk
0:02:58.2]} 5... d5 {[%clk 0:02:51.5]} 6. Bb5 {[%clk 0:02:49.3]} 6... Nd7 {[%clk
0:02:50.9]} 7. O-O {[%clk 0:02:48.3]} 7... Be7 {[%clk 0:02:49.8]} 8. Bxc6 {[%clk
0:02:40.2]} 8... bxc6 {[%clk 0:02:50.7]} 9. Nxd4 {[%clk 0:02:40.3]} 9... Nb8
{[%clk 0:02:51.4]} 10. c4 {[%clk 0:02:39.4]} 10... O-O {[%clk 0:02:50.4]} 11.
Nc3 {[%clk 0:02:38.2]} 11... c5 {[%clk 0:02:41]} 12. Ndb5 {[%clk 0:02:36.5]}
12... d4 {[%clk 0:02:35.5]} 13. Ne4 {[%clk 0:02:30.8]} 13... Nc6 {[%clk
0:02:12]} 14. Bf4 {[%clk 0:02:17.5]} 14... Be6 {[%clk 0:02:07.8]} 15. Na3 {[%clk
0:02:11.7]} 15... a5 {[%clk 0:02:04.6]} 16. b3 {[%clk 0:02:07.3]} 16... h6
{[%clk 0:01:51.5]} 17. Nb5 {[%clk 0:02:06.4]} 17... Qd7 {[%clk 0:01:47.6]} 18.
Re1 {[%clk 0:02:00.3]} 18... a4 {[%clk 0:01:47.2]} 19. h3 {[%clk 0:01:54]} 19...
Nb4 {[%clk 0:01:35.7]} 20. Qd2 {[%clk 0:01:42.4]} 20... Kh7 {[%clk 0:01:28.4]}
21. Bg3 {[%clk 0:01:14.8]} 21... Bf5 {[%clk 0:01:18]} 22. e6 {[%clk 0:01:14.8]}
22... fxe6 {[%clk 0:01:18.3]} 23. Nxc7 {[%clk 0:01:13.2]} 23... Rad8 {[%clk
0:01:00.5]} 24. Rad1 {[%clk 0:00:55]} 24... axb3 {[%clk 0:00:59.1]} 25. axb3
{[%clk 0:00:55.6]} 25... d3 {[%clk 0:00:56.7]} 26. Nb5 {[%clk 0:00:23.2]} 26...
Nc2 {[%clk 0:00:52.3]} 27. Ned6 {[%clk 0:00:23.2]} 27... Nxe1 {[%clk 0:00:48.8]}
28. Rxe1 {[%clk 0:00:24.1]} 28... Bg6 {[%clk 0:00:45.9]} 29. Be5 {[%clk
0:00:20.5]} 29... Bf6 {[%clk 0:00:42.8]} 30. f4 {[%clk 0:00:20]} 30... Qe7
{[%clk 0:00:34.3]} 31. Re3 {[%clk 0:00:04.4]} 31... Bxe5 {[%clk 0:00:23.3]} 32.
fxe5 {[%clk 0:00:05.3]} 32... Qg5 {[%clk 0:00:21.2]} 33. Rxd3 {[%clk 0:00:05]}
33... Bxd3 {[%clk 0:00:20.1]} 34. Qxd3+ {[%clk 0:00:05.9]} 34... Kg8 {[%clk
0:00:19.3]} 35. Qe2 {[%clk 0:00:04.5]} 35... Qc1+ {[%clk 0:00:18.7]} 36. Kh2
{[%clk 0:00:05]} 36... Qf4+ {[%clk 0:00:19.2]} 37. Kg1 {[%clk 0:00:05.3]} 37...
Ra8 {[%clk 0:00:19.9]} 38. Qe1 {[%clk 0:00:04.2]} 38... Ra2 {[%clk 0:00:18.4]}
39. Nc7 {[%clk 0:00:03.9]} 39... Rf2 {[%clk 0:00:18.3]} 40. Nxe6 {[%clk
0:00:01.7]} 40... Rf1+ {[%clk 0:00:17.9]} 41. Qxf1 {[%clk 0:00:02.4]} 41...
Qxf1+ {[%clk 0:00:18.4]} 42. Kh2 {[%clk 0:00:03.3]} 42... Ra8 {[%clk 0:00:17]}
43. Ne4 {[%clk 0:00:02.8]} 43... Ra2 {[%clk 0:00:17.2]} 0-1

[Event "Early-Titled-Tuesday-Blitz-September-05-2023"]
[Site "Chess.com"]
[Date "2023.09.05"]
[Round "3"]
[White "Sjakkerntobi"]
[Black "meoluoi91"]
[Result "0-1"]
[WhiteElo "2477"]
[BlackElo "2682"]
[TimeControl "180+1"]
[EndTime "8:27:59 PDT"]
[Termination "meoluoi91 won on time"]

1. e4 {[%clk 0:03:00.9]} 1... c6 {[%clk 0:02:59.3]} 2. Nc3 {[%clk 0:02:59.7]}
2... d5 {[%clk 0:02:59.2]} 3. Nf3 {[%clk 0:03:00.6]} 3... g6 {[%clk 0:02:58.3]}
4. d4 {[%clk 0:02:57.4]} 4... Bg7 {[%clk 0:02:58.4]} 5. e5 {[%clk 0:02:57.3]}
5... Nh6 {[%clk 0:02:50.1]} 6. Bg5 {[%clk 0:02:52.1]} 6... f6 {[%clk 0:02:49]}
7. exf6 {[%clk 0:02:51.4]} 7... exf6 {[%clk 0:02:49.9]} 8. Bf4 {[%clk
0:02:51.4]} 8... O-O {[%clk 0:02:48.7]} 9. Be2 {[%clk 0:02:51.8]} 9... a5 {[%clk
0:02:46]} 10. O-O {[%clk 0:02:50.6]} 10... Na6 {[%clk 0:02:46.1]} 11. Re1 {[%clk
0:02:47.1]} 11... Nc7 {[%clk 0:02:40.2]} 12. h3 {[%clk 0:02:41.8]} 12... Ne6
{[%clk 0:02:39.9]} 13. Bh2 {[%clk 0:02:41.2]} 13... b5 {[%clk 0:02:39.4]} 14.
Bd3 {[%clk 0:02:36.8]} 14... a4 {[%clk 0:02:38.4]} 15. a3 {[%clk 0:02:36.8]}
15... Nf7 {[%clk 0:02:33.5]} 16. Ne2 {[%clk 0:02:36.2]} 16... Bh6 {[%clk
0:02:33.1]} 17. c3 {[%clk 0:02:16.9]} 17... Bd7 {[%clk 0:02:33.1]} 18. Qc2
{[%clk 0:02:16.9]} 18... Kg7 {[%clk 0:02:01.8]} 19. Bg3 {[%clk 0:02:04.7]} 19...
Qb6 {[%clk 0:01:58.9]} 20. Nh2 {[%clk 0:02:03.5]} 20... f5 {[%clk 0:01:48.3]}
21. Nf3 {[%clk 0:01:47.3]} 21... f4 {[%clk 0:01:47.7]} 22. Bh2 {[%clk
0:01:46.6]} 22... Rae8 {[%clk 0:01:46.7]} 23. Nh4 {[%clk 0:01:33.4]} 23... Nh8
{[%clk 0:01:39.9]} 24. Nf3 {[%clk 0:01:33.8]} 24... Bc8 {[%clk 0:01:30.8]} 25.
Ne5 {[%clk 0:01:31.9]} 25... Bg5 {[%clk 0:01:24.2]} 26. Kh1 {[%clk 0:01:16.7]}
26... Qc7 {[%clk 0:01:16.9]} 27. Ng1 {[%clk 0:01:16.3]} 27... Be7 {[%clk
0:01:11.8]} 28. Ngf3 {[%clk 0:01:16.2]} 28... Bd6 {[%clk 0:01:12.1]} 29. b3
{[%clk 0:01:07.5]} 29... axb3 {[%clk 0:00:52.5]} 30. Qxb3 {[%clk 0:01:08.4]}
30... Nf7 {[%clk 0:00:52.3]} 31. a4 {[%clk 0:01:06.4]} 31... Nxe5 {[%clk
0:00:51.7]} 32. dxe5 {[%clk 0:01:06.6]} 32... Bc5 {[%clk 0:00:51]} 33. axb5
{[%clk 0:01:05.1]} 33... Bxf2 {[%clk 0:00:50.5]} 34. Rf1 {[%clk 0:01:03]} 34...
Nc5 {[%clk 0:00:50.6]} 35. Qc2 {[%clk 0:01:00.1]} 35... Be3 {[%clk 0:00:49.7]}
36. bxc6 {[%clk 0:00:46]} 36... Re7 {[%clk 0:00:48.7]} 37. Be2 {[%clk
0:00:19.6]} 37... Qxc6 {[%clk 0:00:41.7]} 38. Qd1 {[%clk 0:00:06.4]} 38... Ne4
{[%clk 0:00:41]} 39. Qe1 {[%clk 0:00:05.6]} 39... Qxc3 {[%clk 0:00:35.9]} 40.
Qxc3 {[%clk 0:00:05.5]} 40... Nxc3 {[%clk 0:00:36.8]} 41. Rae1 {[%clk
0:00:04.4]} 41... d4 {[%clk 0:00:35.3]} 42. Bd3 {[%clk 0:00:04.4]} 42... Bb7
{[%clk 0:00:33.3]} 43. Ra1 {[%clk 0:00:02.4]} 43... Bd5 {[%clk 0:00:29.8]} 44.
Bg1 {[%clk 0:00:02.1]} 44... Rd8 {[%clk 0:00:19.8]} 45. Bxe3 {[%clk 0:00:02.1]}
45... dxe3 {[%clk 0:00:20]} 0-1

[Event "Early-Titled-Tuesday-Blitz-September-05-2023"]
[Site "Chess.com"]
[Date "2023.09.05"]
[Round "3"]
[White "kingofthenil"]
[Black "vesalhamedinia"]
[Result "1-0"]
[WhiteElo "2713"]
[BlackElo "2478"]
[TimeControl "180+1"]
[EndTime "8:28:01 PDT"]
[Termination "kingofthenil won by resignation"]

1. e4 {[%clk 0:03:00.9]} 1... c5 {[%clk 0:03:00]} 2. Nf3 {[%clk 0:03:00.6]} 2...
Nc6 {[%clk 0:03:00.2]} 3. d4 {[%clk 0:03:01.2]} 3... cxd4 {[%clk 0:03:00.5]} 4.
Nxd4 {[%clk 0:03:02.1]} 4... Nf6 {[%clk 0:03:01.1]} 5. Nc3 {[%clk 0:03:01.8]}
5... e5 {[%clk 0:03:01.6]} 6. Nf3 {[%clk 0:03:00.9]} 6... Bb4 {[%clk 0:03:00.8]}
7. Bd2 {[%clk 0:03:01.2]} 7... d6 {[%clk 0:02:58.1]} 8. Bd3 {[%clk 0:03:00.8]}
8... O-O {[%clk 0:02:57.9]} 9. h3 {[%clk 0:03:00.6]} 9... Be6 {[%clk 0:02:58]}
10. O-O {[%clk 0:03:00.6]} 10... Re8 {[%clk 0:02:57.1]} 11. Ng5 {[%clk
0:02:51.7]} 11... d5 {[%clk 0:02:50.4]} 12. Nxe6 {[%clk 0:02:51]} 12... Rxe6
{[%clk 0:02:50.8]} 13. exd5 {[%clk 0:02:47.1]} 13... Nxd5 {[%clk 0:02:49.1]} 14.
Nxd5 {[%clk 0:01:04.3]} 14... Qxd5 {[%clk 0:02:50]} 15. Be3 {[%clk 0:01:04.5]}
15... Rd8 {[%clk 0:02:48.3]} 16. Qg4 {[%clk 0:01:01.6]} 16... e4 {[%clk
0:02:45]} 17. Be2 {[%clk 0:00:59.2]} 17... Qe5 {[%clk 0:02:42.4]} 18. c3 {[%clk
0:00:57.7]} 18... Bc5 {[%clk 0:02:39.7]} 19. Rad1 {[%clk 0:00:53.2]} 19... Bxe3
{[%clk 0:02:35.3]} 20. fxe3 {[%clk 0:00:54.1]} 20... Qc5 {[%clk 0:02:28.3]} 21.
Kh1 {[%clk 0:00:33.4]} 21... Qe7 {[%clk 0:01:59.7]} 22. Bc4 {[%clk 0:00:26.1]}
22... Rf6 {[%clk 0:01:58.7]} 23. Rxd8+ {[%clk 0:00:25.5]} 23... Qxd8 {[%clk
0:01:51.2]} 24. Rxf6 {[%clk 0:00:26.4]} 24... Qxf6 {[%clk 0:01:51.3]} 25. Qxe4
{[%clk 0:00:27]} 25... g6 {[%clk 0:01:46.9]} 26. Bd5 {[%clk 0:00:26.7]} 26...
Qf1+ {[%clk 0:01:44.7]} 27. Kh2 {[%clk 0:00:26.6]} 27... Qf6 {[%clk 0:01:26]}
28. b4 {[%clk 0:00:17.3]} 28... Ne5 {[%clk 0:01:07]} 29. Bxb7 {[%clk 0:00:16.7]}
29... h5 {[%clk 0:01:05.7]} 30. Bd5 {[%clk 0:00:15.8]} 30... Kg7 {[%clk
0:01:05.8]} 31. c4 {[%clk 0:00:15.3]} 31... Nd7 {[%clk 0:01:04.7]} 32. Qf4
{[%clk 0:00:15.1]} 32... Qe7 {[%clk 0:01:03.7]} 33. c5 {[%clk 0:00:14.3]} 33...
Nf6 {[%clk 0:01:02.8]} 34. Bf3 {[%clk 0:00:14.9]} 34... Nd7 {[%clk 0:00:56.4]}
35. Qd4+ {[%clk 0:00:14.9]} 35... Ne5 {[%clk 0:00:55.9]} 36. Bd5 {[%clk
0:00:11.6]} 36... Qc7 {[%clk 0:00:55.6]} 37. Qf4 {[%clk 0:00:10.9]} 37... f6
{[%clk 0:00:49.4]} 38. Kh1 {[%clk 0:00:10.7]} 38... g5 {[%clk 0:00:49.6]} 39.
Qf5 {[%clk 0:00:10.4]} 39... Qb8 {[%clk 0:00:43.4]} 40. a3 {[%clk 0:00:10.3]}
40... a5 {[%clk 0:00:43.1]} 41. Be4 {[%clk 0:00:10.6]} 41... Kf7 {[%clk
0:00:29.9]} 42. Qh7+ {[%clk 0:00:09]} 42... Ke6 {[%clk 0:00:30.2]} 43. Qf5+
{[%clk 0:00:06.2]} 43... Ke7 {[%clk 0:00:26]} 44. Bd5 {[%clk 0:00:05.4]} 44...
axb4 {[%clk 0:00:18.7]} 45. Qe6+ {[%clk 0:00:05.4]} 45... Kd8 {[%clk 0:00:18.9]}
46. Qxf6+ {[%clk 0:00:06.3]} 46... Ke8 {[%clk 0:00:18.8]} 47. Qh8+ {[%clk
0:00:05.5]} 47... Kd7 {[%clk 0:00:17.9]} 48. Qxb8 {[%clk 0:00:06.4]} 1-0

[Event "Early-Titled-Tuesday-Blitz-September-05-2023"]
[Site "Chess.com"]
[Date "2023.09.05"]
[Round "3"]
[White "ChainedDowntohell"]
[Black "Irina_Mikhaylova"]
[Result "1-0"]
[WhiteElo "2568"]
[BlackElo "2310"]
[TimeControl "180+1"]
[EndTime "8:28:02 PDT"]
[Termination "ChainedDowntohell won by resignation"]

1. d4 {[%clk 0:02:59.3]} 1... Nf6 {[%clk 0:02:59.8]} 2. Nf3 {[%clk 0:02:57.2]}
2... g6 {[%clk 0:02:59.9]} 3. e3 {[%clk 0:02:56.4]} 3... Bg7 {[%clk 0:03:00.1]}
4. b4 {[%clk 0:02:55.8]} 4... O-O {[%clk 0:02:59.6]} 5. Bb2 {[%clk 0:02:55.8]}
5... d6 {[%clk 0:02:55.7]} 6. Be2 {[%clk 0:02:54.5]} 6... b6 {[%clk 0:02:56.1]}
7. c4 {[%clk 0:02:47.7]} 7... Nbd7 {[%clk 0:02:53.2]} 8. O-O {[%clk 0:02:39]}
8... Bb7 {[%clk 0:02:40.1]} 9. a4 {[%clk 0:02:38.5]} 9... e5 {[%clk 0:02:26.4]}
10. Nc3 {[%clk 0:02:32.3]} 10... Ne4 {[%clk 0:02:21.8]} 11. Nxe4 {[%clk
0:02:29.5]} 11... Bxe4 {[%clk 0:02:22]} 12. a5 {[%clk 0:02:05.2]} 12... c5
{[%clk 0:02:04]} 13. Nd2 {[%clk 0:01:44.4]} 13... Bb7 {[%clk 0:01:58]} 14. a6
{[%clk 0:01:26.7]} 14... Bc8 {[%clk 0:01:58.2]} 15. Ne4 {[%clk 0:01:02.8]} 15...
Qe7 {[%clk 0:01:08.5]} 16. dxc5 {[%clk 0:00:50]} 16... dxc5 {[%clk 0:01:07.4]}
17. b5 {[%clk 0:00:40.6]} 17... Rd8 {[%clk 0:00:46]} 18. Qd6 {[%clk 0:00:35.6]}
18... Qxd6 {[%clk 0:00:35.3]} 19. Nxd6 {[%clk 0:00:36.5]} 19... Nf8 {[%clk
0:00:34.1]} 20. Rad1 {[%clk 0:00:26.6]} 20... Be6 {[%clk 0:00:25.5]} 21. Bf3
{[%clk 0:00:24.9]} 21... Rab8 {[%clk 0:00:25.6]} 22. Bc6 {[%clk 0:00:20]} 22...
Bf6 {[%clk 0:00:19.8]} 23. Rd2 {[%clk 0:00:19.4]} 23... Be7 {[%clk 0:00:19.4]}
24. Bxe5 {[%clk 0:00:18.5]} 24... Bxd6 {[%clk 0:00:16.4]} 25. Bxd6 {[%clk
0:00:18.9]} 25... Rbc8 {[%clk 0:00:16.9]} 26. Rc1 {[%clk 0:00:12.6]} 26... Bd7
{[%clk 0:00:11.6]} 27. Bb7 {[%clk 0:00:12.7]} 27... Be6 {[%clk 0:00:11.9]} 28.
Bxc8 {[%clk 0:00:12.5]} 28... Rxc8 {[%clk 0:00:12.5]} 29. Bxf8 {[%clk
0:00:09.8]} 29... Kxf8 {[%clk 0:00:13.4]} 30. f3 {[%clk 0:00:08.3]} 30... Ke7
{[%clk 0:00:12.8]} 31. Kf2 {[%clk 0:00:09]} 31... Rc7 {[%clk 0:00:13.4]} 32. g4
{[%clk 0:00:09.4]} 32... h5 {[%clk 0:00:13.4]} 33. h3 {[%clk 0:00:09.1]} 33...
h4 {[%clk 0:00:13.4]} 34. e4 {[%clk 0:00:09.1]} 34... f5 {[%clk 0:00:13.5]} 35.
gxf5 {[%clk 0:00:08.9]} 35... gxf5 {[%clk 0:00:14]} 36. exf5 {[%clk 0:00:08.4]}
36... Bxf5 {[%clk 0:00:14.1]} 37. Re1+ {[%clk 0:00:08.9]} 37... Kf6 {[%clk
0:00:14.6]} 38. Rd6+ {[%clk 0:00:09]} 38... Kf7 {[%clk 0:00:14.8]} 39. Re5
{[%clk 0:00:04.5]} 39... Bxh3 {[%clk 0:00:12.5]} 40. Rh5 {[%clk 0:00:05]} 40...
Kg7 {[%clk 0:00:07.8]} 41. Rxh4 {[%clk 0:00:04.7]} 41... Bf5 {[%clk 0:00:07.8]}
42. Rf4 {[%clk 0:00:04.7]} 42... Bd3 {[%clk 0:00:07.8]} 43. Rxd3 {[%clk
0:00:03.2]} 1-0

[Event "Early-Titled-Tuesday-Blitz-September-05-2023"]
[Site "Chess.com"]
[Date "2023.09.05"]
[Round "3"]
[White "Battever"]
[Black "Aureliano-Buendia"]
[Result "0-1"]
[WhiteElo "2458"]
[BlackElo "2655"]
[TimeControl "180+1"]
[EndTime "8:28:04 PDT"]
[Termination "Aureliano-Buendia won on time"]

1. e4 {[%clk 0:02:53.9]} 1... c5 {[%clk 0:03:00]} 2. Nf3 {[%clk 0:02:49.2]} 2...
d6 {[%clk 0:03:00.3]} 3. Bb5+ {[%clk 0:02:44.6]} 3... Bd7 {[%clk 0:02:59.1]} 4.
Bxd7+ {[%clk 0:02:43.2]} 4... Qxd7 {[%clk 0:02:59.5]} 5. c4 {[%clk 0:02:42]}
5... Nf6 {[%clk 0:02:59.2]} 6. Nc3 {[%clk 0:02:41.8]} 6... g6 {[%clk 0:02:59.7]}
7. d4 {[%clk 0:02:41.9]} 7... cxd4 {[%clk 0:02:59.3]} 8. Nxd4 {[%clk 0:02:42.6]}
8... Bg7 {[%clk 0:02:59.6]} 9. O-O {[%clk 0:02:43.3]} 9... O-O {[%clk
0:02:59.9]} 10. b3 {[%clk 0:02:36.7]} 10... Nc6 {[%clk 0:02:53.7]} 11. Bb2
{[%clk 0:02:35.3]} 11... a6 {[%clk 0:02:34]} 12. a4 {[%clk 0:02:16.3]} 12...
Nxd4 {[%clk 0:02:12.7]} 13. Qxd4 {[%clk 0:02:14.5]} 13... e6 {[%clk 0:02:10.1]}
14. Rfd1 {[%clk 0:02:07.5]} 14... Rfd8 {[%clk 0:02:09.9]} 15. a5 {[%clk
0:01:57.7]} 15... Qc6 {[%clk 0:02:09.1]} 16. Na4 {[%clk 0:01:45.7]} 16... Ne8
{[%clk 0:02:06.2]} 17. Qe3 {[%clk 0:01:39.2]} 17... Bxb2 {[%clk 0:02:00.5]} 18.
Nxb2 {[%clk 0:01:40.1]} 18... d5 {[%clk 0:01:53.2]} 19. cxd5 {[%clk 0:00:47.5]}
19... exd5 {[%clk 0:01:54.1]} 20. exd5 {[%clk 0:00:45.5]} 20... Rxd5 {[%clk
0:01:54.8]} 21. Rxd5 {[%clk 0:00:37.1]} 21... Qxd5 {[%clk 0:01:55.7]} 22. Nc4
{[%clk 0:00:37]} 22... Rd8 {[%clk 0:01:50.9]} 23. h3 {[%clk 0:00:29.9]} 23...
Nd6 {[%clk 0:01:47.5]} 24. Nb6 {[%clk 0:00:24]} 24... Qb5 {[%clk 0:01:40.3]} 25.
Qe7 {[%clk 0:00:20.5]} 25... Qe8 {[%clk 0:01:32.6]} 26. Re1 {[%clk 0:00:15.5]}
26... h5 {[%clk 0:01:04.3]} 27. Re3 {[%clk 0:00:13.7]} 27... Qxe7 {[%clk
0:00:58.5]} 28. Rxe7 {[%clk 0:00:14.6]} 28... Kf8 {[%clk 0:00:58.5]} 29. Rc7
{[%clk 0:00:13.5]} 29... Re8 {[%clk 0:00:57.6]} 30. Rd7 {[%clk 0:00:09]} 30...
Re6 {[%clk 0:00:56.6]} 31. Nd5 {[%clk 0:00:09]} 31... Kg7 {[%clk 0:00:55.1]} 32.
Nc7 {[%clk 0:00:07.4]} 32... Re1+ {[%clk 0:00:54.5]} 33. Kh2 {[%clk 0:00:07.9]}
33... Ne4 {[%clk 0:00:51.3]} 34. f3 {[%clk 0:00:04.8]} 34... Nc5 {[%clk
0:00:48.9]} 35. Rd5 {[%clk 0:00:02.4]} 35... Nxb3 {[%clk 0:00:46.8]} 36. Kg3
{[%clk 0:00:02.1]} 36... Ra1 {[%clk 0:00:45.3]} 37. Ne8+ {[%clk 0:00:02.5]}
37... Kf8 {[%clk 0:00:44.8]} 38. Nd6 {[%clk 0:00:03.2]} 38... Rxa5 {[%clk
0:00:42.3]} 39. Rd3 {[%clk 0:00:03.9]} 39... Nc5 {[%clk 0:00:41]} 40. Rc3 {[%clk
0:00:04.1]} 40... b6 {[%clk 0:00:40.8]} 41. Nc8 {[%clk 0:00:03.7]} 41... Nd7
{[%clk 0:00:38.1]} 42. Rc7 {[%clk 0:00:03.9]} 42... Rd5 {[%clk 0:00:37.1]} 43.
Rb7 {[%clk 0:00:02.7]} 43... b5 {[%clk 0:00:36.3]} 44. Ra7 {[%clk 0:00:03]}
44... Nc5 {[%clk 0:00:34.9]} 45. Nb6 {[%clk 0:00:02.5]} 45... Rg5+ {[%clk
0:00:34.1]} 46. Kf4 {[%clk 0:00:02.3]} 46... Rf5+ {[%clk 0:00:34.4]} 47. Kg3
{[%clk 0:00:02.3]} 47... b4 {[%clk 0:00:34.6]} 48. Rc7 {[%clk 0:00:02.7]} 48...
Kg7 {[%clk 0:00:33.1]} 49. f4 {[%clk 0:00:01.9]} 49... b3 {[%clk 0:00:32.8]} 50.
Nc4 {[%clk 0:00:02.6]} 50... Rd5 {[%clk 0:00:31.9]} 51. Ne5 {[%clk 0:00:02.2]}
51... Rxe5 {[%clk 0:00:27.2]} 52. fxe5 {[%clk 0:00:02.1]} 52... b2 {[%clk
0:00:27.7]} 53. e6 {[%clk 0:00:01.7]} 53... b1=Q {[%clk 0:00:27.5]} 54. Rxf7+
{[%clk 0:00:02]} 54... Kg8 {[%clk 0:00:27.7]} 0-1